bitfinex-derivatives/quotes_BTCF0:USTF0_20250812
["timestamp","ask_amount","ask_price","bid_price","bid_amount"]
[1754988403981,1.24069756,119080.0,119070.0,0.17293733]
[1754988404373,1.24069756,119080.0,119070.0,0.14796733]
[1754988404674,1.24069756,119080.0,119070.0,0.17293733]
[1754988405080,0.62923589,119080.0,119070.0,0.23195203]
[1754988405282,1.23242711,119080.0,119070.0,0.25692203]
[1754988406283,0.62923589,119080.0,119070.0,0.25692203]
[1754988406481,0.9308315,119080.0,119070.0,0.35366203]
[1754988406681,0.62923589,119080.0,119070.0,0.35366203]
[1754988406877,0.9308315,119080.0,119070.0,0.65525764]
[1754988407074,0.9308315,119080.0,119070.0,0.35366203]
[1754988407279,1.23242711,119080.0,119070.0,0.25496733]
[1754988408587,1.59322711,119080.0,119070.0,0.14796733]
[1754988409686,1.59322711,119080.0,119050.0,0.1423688]
[1754988409687,0.68718292,119060.0,119050.0,0.1423688]
[1754988409890,1.16739292,119060.0,119050.0,0.1568388]
[1754988410385,1.16739292,119060.0,119050.0,0.1904088]
[1754988410791,1.16739292,119060.0,119050.0,0.49200441]
[1754988410988,0.86579731,119060.0,119050.0,0.1904088]
[1754988411183,0.86579731,119060.0,119050.0,0.49200441]
[1754988411383,0.86579731,119060.0,119050.0,0.50701441]
[1754988412093,0.86579731,119060.0,119050.0,0.2054188]
[1754988412291,0.86579731,119060.0,119050.0,0.50701441]
[1754988412791,0.86579731,119060.0,119050.0,0.63598641]
[1754988412991,0.86579731,119060.0,119050.0,0.63698641]
[1754988413489,0.5642017,119060.0,119050.0,0.3353908]
[1754988413691,0.5642017,119060.0,119050.0,0.63598641]
[1754988413692,0.86579731,119060.0,119050.0,0.63598641]
[1754988414285,0.86579731,119060.0,119050.0,0.63498641]
[1754988414485,0.86679731,119060.0,119050.0,0.63498641]
[1754988415396,0.86679731,119060.0,119050.0,0.3333908]
[1754988415880,0.86679731,119060.0,119050.0,0.63498641]
[1754988416481,1.52919292,119060.0,119050.0,0.128972]
[1754988416680,1.97018853,119060.0,119050.0,0.02923242]
[1754988416991,1.66859292,119060.0,119050.0,0.02923242]
[1754988418693,1.46804388,119060.0,119050.0,0.02923242]
[1754988419601,1.46804388,119060.0,119050.0,0.11323112]
[1754988419996,1.46804388,119060.0,119050.0,0.02923242]
[1754988420392,1.0654017,119060.0,119050.0,0.02923242]
[1754988420591,1.46804388,119060.0,119050.0,0.02923242]
[1754988420797,1.46804388,119060.0,119050.0,0.05403242]
[1754988422697,1.46804388,119060.0,119050.0,0.13803112]
[1754988423602,1.46804388,119060.0,119050.0,0.05403242]
[1754988424499,1.49434181,119060.0,119050.0,0.02923242]
[1754988424802,1.49434181,119060.0,119050.0,0.05403242]
[1754988425002,1.49434181,119060.0,119050.0,0.13803112]
[1754988427112,1.09169963,119060.0,119050.0,0.13803112]
[1754988427304,1.49434181,119060.0,119050.0,0.13803112]
[1754988427499,1.49434181,119060.0,119050.0,0.05403242]
[1754988428101,1.49434181,119060.0,119050.0,0.13803112]
[1754988428702,1.49434181,119060.0,119050.0,0.05403242]
[1754988429404,1.49434181,119060.0,119050.0,0.13803102]
[1754988429705,1.49434181,119060.0,119050.0,0.05403242]
[1754988429905,1.49434181,119060.0,119050.0,0.13803102]
[1754988430106,1.49434181,119060.0,119050.0,0.05403242]
[1754988431607,1.46804388,119060.0,119050.0,0.05403242]
[1754988432502,1.46804388,119060.0,119050.0,0.10207242]
[1754988432710,1.09175823,119060.0,119050.0,0.05403242]
[1754988433101,1.09175823,119060.0,119050.0,0.02923242]
[1754988433301,1.49440041,119060.0,119050.0,0.02923242]
[1754988433498,1.09175823,119060.0,119050.0,0.02923242]
[1754988433708,1.49440041,119060.0,119050.0,0.02923242]
[1754988435108,1.09175823,119060.0,119050.0,0.02923242]
[1754988435414,1.49440041,119060.0,119050.0,0.05403242]
[1754988437816,1.49442726,119060.0,119050.0,0.05403242]
[1754988439310,1.49442726,119060.0,119050.0,0.18592042]
[1754988439516,1.49442726,119060.0,119050.0,0.23198042]
[1754988439814,1.49442726,119060.0,119050.0,0.13428242]
[1754988440213,1.49442726,119060.0,119050.0,0.10192242]
[1754988440515,1.49442726,119060.0,119050.0,0.08000242]
[1754988440714,1.69571066,119060.0,119050.0,0.07007242]
[1754988441513,1.69571066,119060.0,119050.0,0.05403242]
[1754988443416,1.0654017,119060.0,119050.0,0.05403242]
[1754988443617,1.66932728,119060.0,119050.0,0.05403242]
[1754988444117,1.66932728,119060.0,119050.0,0.02923242]
[1754988444914,1.97129007,119060.0,119050.0,0.02923242]
[1754988445122,1.9977038,119060.0,119050.0,0.02923242]
[1754988445511,0.0840109,119030.0,119020.0,0.31542301]
[1754988445714,0.82508369,119030.0,119020.0,0.36394301]
[1754988446014,0.82508369,119030.0,119020.0,0.6659058]
[1754988446216,0.82508369,119030.0,119020.0,0.6902358]
[1754988446410,0.82508369,119030.0,119020.0,0.38827301]
[1754988446617,0.5231209,119030.0,119020.0,0.38827301]
[1754988447416,2.0231209,119030.0,119020.0,0.38827301]
[1754988447817,1.6623209,119030.0,119020.0,0.39227301]
[1754988448421,1.8017209,119030.0,119020.0,0.79499257]
[1754988448622,1.6623209,119030.0,119020.0,0.92196457]
[1754988448822,1.6623209,119030.0,119020.0,0.91996457]
[1754988449629,2.0231209,119030.0,119020.0,0.51724501]
[1754988449925,2.0231209,119030.0,119020.0,0.91996457]
[1754988455236,2.0231209,119030.0,119020.0,0.90626457]
[1754988455525,2.42584046,119030.0,119020.0,0.51724501]
[1754988455727,2.42584046,119030.0,119020.0,0.50354501]
[1754988456221,2.42584046,119030.0,119020.0,0.33551161]
[1754988456625,2.42584046,119030.0,119020.0,0.128972]
[1754988456824,2.42584046,119030.0,119020.0,0.153302]
[1754988457030,2.42584046,119030.0,119020.0,0.2373196]
[1754988458519,2.56524046,119030.0,119020.0,0.2373196]
[1754988459223,2.1625209,119030.0,119020.0,0.2373196]
[1754988459421,2.56524046,119030.0,119020.0,0.2373196]
[1754988459618,2.1625209,119030.0,119020.0,0.2373196]
[1754988460315,2.56524046,119030.0,119020.0,0.2533596]
[1754988461118,2.1625209,119030.0,119020.0,0.2533596]
[1754988461318,2.56524046,119030.0,119020.0,0.2533596]
[1754988461929,2.1625209,119030.0,119020.0,0.2533596]
[1754988462430,2.1625209,119030.0,119020.0,0.3181996]
[1754988462634,2.56524046,119030.0,119020.0,0.3318996]
[1754988462826,2.9593209,119030.0,119020.0,0.3318996]
[1754988464020,1.57831,119030.0,119020.0,0.72091916]
[1754988464327,1.57831,119030.0,119020.0,1.53141916]
[1754988464641,1.56359,119030.0,119020.0,1.53141916]
[1754988464837,1.53038,119030.0,119020.0,1.53141916]
[1754988465128,1.57831,119030.0,119020.0,1.53141916]
[1754988465730,1.57831,119030.0,119020.0,1.53341916]
[1754988466527,1.6623207,119030.0,119020.0,1.53341916]
[1754988466829,1.5,119030.0,119020.0,1.53341916]
[1754988467834,1.54793,119030.0,119020.0,1.53341916]
[1754988468930,1.54793,119030.0,119020.0,1.1306996]
[1754988469129,1.54793,119030.0,119020.0,1.53341916]
[1754988469330,1.54793,119030.0,119020.0,1.1306996]
[1754988469527,1.54793,119030.0,119020.0,1.53341916]
[1754988474436,1.54793,119030.0,119020.0,1.1306996]
[1754988474835,1.6319409,119030.0,119020.0,1.53341916]
[1754988477835,1.6319409,119030.0,119020.0,0.73661916]
[1754988478034,1.6319409,119030.0,119020.0,1.53321916]
[1754988478236,1.6319409,119030.0,119020.0,1.0844396]
[1754988478538,1.6319409,119030.0,119020.0,1.1167196]
[1754988478940,1.9927409,119030.0,119020.0,1.1311496]
[1754988479834,1.9927409,119030.0,119020.0,1.0745096]
[1754988480033,3.19202046,119030.0,119020.0,0.2393196]
[1754988480228,3.19202046,119030.0,119020.0,0.2149896]
[1754988480431,3.19202046,119030.0,119020.0,0.130972]
[1754988480737,3.19202046,119030.0,119020.0,0.21499]
[1754988480936,2.7893009,119030.0,119020.0,0.23755]
[1754988481139,3.19202046,119030.0,119020.0,0.23755]
[1754988481529,3.15881046,119030.0,119020.0,0.23755]
[1754988481725,3.19185046,119030.0,119020.0,0.23755]
[1754988482543,3.19185046,119030.0,119020.0,0.23655]
[1754988482838,3.19185046,119030.0,119020.0,0.23555]
[1754988483437,2.7891309,119030.0,119020.0,0.23555]
[1754988484045,3.19185046,119030.0,119020.0,0.23555]
[1754988484338,2.7891309,119030.0,119020.0,0.23555]
[1754988484642,2.7891309,119030.0,119020.0,0.25172]
[1754988489550,3.19185046,119030.0,119020.0,0.25172]
[1754988489745,3.19185046,119030.0,119020.0,0.23555]
[1754988491853,2.7891309,119030.0,119020.0,0.23555]
[1754988492043,3.19185046,119030.0,119020.0,0.23555]
[1754988492547,2.7891309,119030.0,119020.0,0.23555]
[1754988494350,2.7889309,119030.0,119020.0,0.73211956]
[1754988494950,2.7889309,119030.0,119020.0,0.3294]
[1754988495251,2.7889309,119030.0,119020.0,0.73211956]
[1754988496051,2.7889309,119030.0,119020.0,0.71768956]
[1754988497154,2.7889309,119030.0,119020.0,0.31497]
[1754988499252,2.9283309,119030.0,119020.0,0.31497]
[1754988499953,2.9283309,119030.0,119020.0,0.71768956]
[1754988500145,1.90856,119030.0,119020.0,0.73358956]
[1754988500344,1.54776,119030.0,119020.0,0.73358956]
[1754988500543,1.6317712,119030.0,119020.0,0.73358956]
[1754988501055,1.54776,119030.0,119020.0,0.73358956]
[1754988501556,1.54776,119030.0,119020.0,0.73558956]
[1754988502752,1.6317712,119030.0,119020.0,0.33287]
[1754988502949,1.6317712,119030.0,119020.0,0.73558956]
[1754988505057,1.54776,119030.0,119020.0,0.73558956]
[1754988505262,0.04776,119030.0,119020.0,0.73558956]
[1754988505554,0.07869,119030.0,119020.0,0.73558956]
[1754988508147,0.06397,119030.0,119020.0,0.73558956]
[1754988508759,0.07834,119030.0,119020.0,0.73558956]
[1754988509057,0.07834,119030.0,119020.0,0.33287]
[1754988509260,0.07834,119030.0,119020.0,0.73558956]
[1754988510264,1.8608,119040.0,119020.0,1.34843926]
[1754988510449,1.90972,119040.0,119030.0,1.35367076]
[1754988510760,1.9937242,119040.0,119030.0,1.37040535]
[1754988511758,1.9937242,119040.0,119030.0,0.96768579]
[1754988511961,1.9937242,119040.0,119030.0,1.41759535]
[1754988512267,1.9937242,119040.0,119030.0,1.01487579]
[1754988512562,1.9937242,119040.0,119030.0,1.41759535]
[1754988513164,1.9937242,119040.0,119030.0,1.01487579]
[1754988513353,1.9937242,119040.0,119030.0,1.41759535]
[1754988513761,1.9937242,119040.0,119030.0,1.01487579]
[1754988513963,1.9937242,119040.0,119030.0,1.41759535]
[1754988514257,1.9937242,119040.0,119030.0,1.01487579]
[1754988514458,1.9937242,119040.0,119030.0,1.41759535]
[1754988515362,1.9937242,119040.0,119030.0,1.54656735]
[1754988515962,2.39644376,119040.0,119030.0,0.25325779]
[1754988517164,2.39644376,119040.0,119030.0,0.23071779]
[1754988517459,2.39644376,119040.0,119030.0,0.2139832]
[1754988517661,2.39644376,119040.0,119030.0,0.2385232]
[1754988517862,2.39744376,119040.0,119030.0,0.2375232]
[1754988518456,2.39744376,119040.0,119030.0,0.2365232]
[1754988520753,2.7905242,119040.0,119030.0,0.2837132]
[1754988520950,2.7905242,119040.0,119030.0,0.3311132]
[1754988521454,3.19324376,119040.0,119030.0,0.2837132]
[1754988521657,1.69324376,119040.0,119030.0,0.2610232]
[1754988521856,1.69324376,119040.0,119030.0,0.2519632]
[1754988522959,1.69324376,119040.0,119030.0,0.2365232]
[1754988526268,1.2905242,119040.0,119030.0,0.2365232]
[1754988526470,1.69324376,119040.0,119030.0,0.2365232]
[1754988526967,0.4947242,119040.0,119030.0,0.3311132]
[1754988527171,0.5256542,119040.0,119030.0,0.3311132]
[1754988527568,0.92837376,119040.0,119030.0,1.1267132]
[1754988528371,0.92837376,119040.0,119030.0,0.3311132]
[1754988528561,1.06777376,119040.0,119030.0,0.3311132]
[1754988528868,1.06777376,119040.0,119030.0,0.2837132]
[1754988529065,1.06777376,119040.0,119030.0,0.2519632]
[1754988530267,1.06777376,119040.0,119030.0,0.2956632]
[1754988530569,1.06777376,119040.0,119030.0,0.3319532]
[1754988533773,0.6650542,119040.0,119030.0,0.3173432]
[1754988533965,1.06777376,119040.0,119030.0,0.3173432]
[1754988536078,0.6650542,119040.0,119030.0,0.72006276]
[1754988536368,0.6650542,119040.0,119030.0,0.73467276]
[1754988536578,0.6650542,119040.0,119030.0,0.3319532]
[1754988537975,2.1650542,119040.0,119030.0,0.3319532]
[1754988538277,2.1640542,119040.0,119030.0,0.3319532]
[1754988540479,2.56677376,119040.0,119030.0,0.2611432]
[1754988540780,2.7681022,119040.0,119030.0,0.2519632]
[1754988541076,2.7681022,119040.0,119030.0,0.2529632]
[1754988542275,2.7681022,119040.0,119030.0,0.2539632]
[1754988542683,2.4660782,119040.0,119030.0,0.3193432]
[1754988542884,2.4670782,119040.0,119030.0,0.6349772]
[1754988543381,2.4670782,119040.0,119030.0,0.6339772]
[1754988543873,2.1650542,119040.0,119030.0,0.6339772]
[1754988544078,2.4670782,119040.0,119030.0,0.6339772]
[1754988544475,2.1650542,119040.0,119030.0,0.6339772]
[1754988544683,2.4670782,119040.0,119030.0,0.6339772]
[1754988544981,2.4660782,119040.0,119030.0,0.6339772]
[1754988545183,2.4660782,119040.0,119030.0,0.6349772]
[1754988545684,2.4660782,119040.0,119030.0,0.6339772]
[1754988547682,2.1640542,119040.0,119030.0,0.6339772]
[1754988547885,2.4660782,119040.0,119030.0,0.6339772]
[1754988548486,2.4660782,119040.0,119030.0,0.3319532]
[1754988548676,2.4660782,119040.0,119030.0,0.6339772]
[1754988548881,2.7681022,119040.0,119030.0,0.6339772]
[1754988549489,2.1640542,119040.0,119030.0,0.3319532]
[1754988549688,2.7681022,119040.0,119030.0,0.6339772]
[1754988549987,2.4670782,119040.0,119030.0,0.6339772]
[1754988551587,2.4660782,119040.0,119030.0,0.6339772]
[1754988553183,2.1640542,119040.0,119030.0,0.6339772]
[1754988553391,2.4660782,119040.0,119030.0,0.6339772]
[1754988558386,2.7681022,119040.0,119030.0,0.6339772]
[1754988558587,2.7681022,119040.0,119030.0,0.6193672]
[1754988561399,2.4660782,119040.0,119030.0,0.6193672]
[1754988561796,2.4660782,119040.0,119030.0,0.3173432]
[1754988562000,2.4660782,119040.0,119030.0,0.6193672]
[1754988562207,2.1640542,119040.0,119030.0,0.6193672]
[1754988562399,2.4660782,119040.0,119030.0,0.6193672]
[1754988562599,2.4660782,119040.0,119030.0,0.6333472]
[1754988562997,2.1640542,119040.0,119030.0,0.6333472]
[1754988563297,2.4660782,119040.0,119030.0,0.6333472]
[1754988563498,2.1640542,119040.0,119030.0,0.6333472]
[1754988563797,2.4660782,119040.0,119030.0,0.3313232]
[1754988563986,2.4660782,119040.0,119030.0,0.6333472]
[1754988564191,2.1640542,119040.0,119030.0,0.6333472]
[1754988564392,2.4660782,119040.0,119030.0,0.6333472]
[1754988566001,2.4660782,119040.0,119030.0,0.3313232]
[1754988566200,2.4660782,119040.0,119030.0,0.6333472]
[1754988567700,2.4660782,119040.0,119030.0,0.3313232]
[1754988567896,2.4660782,119040.0,119030.0,0.6333472]
[1754988569007,2.1640542,119040.0,119030.0,0.6333472]
[1754988569495,2.4660782,119040.0,119030.0,0.6333472]
[1754988571404,2.4660782,119040.0,119030.0,0.3313232]
[1754988571705,2.4660782,119040.0,119030.0,0.6333472]
[1754988574003,2.4660782,119040.0,119030.0,0.6193672]
[1754988575301,2.4660782,119040.0,119030.0,0.6333472]
[1754988576497,2.4660782,119040.0,119030.0,0.3313232]
[1754988576697,2.4660782,119040.0,119030.0,0.6333472]
[1754988576892,2.08005,119040.0,119030.0,0.6329572]
[1754988577208,2.382074,119040.0,119030.0,0.6329572]
[1754988577402,2.4660776,119040.0,119030.0,0.6329572]
[1754988577804,2.4660776,119040.0,119030.0,0.3309332]
[1754988578100,2.4660776,119040.0,119030.0,0.6329572]
[1754988580098,2.1640536,119040.0,119030.0,0.6329572]
[1754988580303,2.4660776,119040.0,119030.0,0.6329572]
[1754988581505,2.7681016,119040.0,119030.0,0.3309332]
[1754988581705,2.7681016,119040.0,119030.0,0.6329572]
[1754988582506,2.7681016,119040.0,119030.0,0.2129832]
[1754988582700,2.7681016,119040.0,119030.0,0.2367032]
[1754988583505,2.6287016,119040.0,119030.0,0.5387272]
[1754988584408,2.3276776,119040.0,119030.0,0.5542872]
[1754988584609,2.6297016,119040.0,119030.0,0.5884172]
[1754988584810,2.3276776,119040.0,119030.0,0.5978572]
[1754988585908,2.3276776,119040.0,119030.0,0.6193672]
[1754988586104,2.3276776,119040.0,119030.0,0.6333472]
[1754988586810,2.3276776,119040.0,119030.0,0.3313232]
[1754988587012,2.3276776,119040.0,119030.0,0.6333472]
[1754988587219,2.3276776,119040.0,119030.0,0.6193672]
[1754988589017,2.3266776,119040.0,119030.0,0.6193672]
[1754988589317,2.3266776,119040.0,119030.0,0.3173432]
[1754988589512,2.3266776,119040.0,119030.0,0.6193672]
[1754988589813,2.3266776,119040.0,119030.0,0.6343372]
[1754988590202,2.3266776,119040.0,119030.0,0.3300832]
[1754988590514,2.3266776,119040.0,119030.0,0.6321072]
[1754988593116,2.3266776,119040.0,119030.0,0.6171372]
[1754988593316,2.3266776,119040.0,119030.0,0.5637272]
[1754988600424,2.3266776,119040.0,119030.0,0.5542872]
[1754988601823,2.3266776,119040.0,119030.0,0.2522632]
[1754988602024,2.3266776,119040.0,119030.0,0.5542872]
[1754988602220,2.0246536,119040.0,119030.0,0.5542872]
[1754988602722,2.3266776,119040.0,119030.0,0.5542872]
[1754988603025,2.3266776,119040.0,119030.0,0.2522632]
[1754988603219,2.3266776,119040.0,119030.0,0.5542872]
[1754988603415,2.3266776,119040.0,119030.0,0.2367032]
[1754988603817,2.6287016,119040.0,119030.0,0.5387272]
[1754988604623,2.4660776,119040.0,119030.0,0.6211472]
[1754988604821,2.1640536,119040.0,119030.0,0.5902472]
[1754988605021,2.4660776,119040.0,119030.0,0.6371172]
[1754988605222,2.4660776,119040.0,119030.0,0.6221472]
[1754988605425,2.4660776,119040.0,119030.0,0.6211472]
[1754988605729,2.4670776,119040.0,119030.0,0.3191232]
[1754988606026,2.4670776,119040.0,119030.0,0.6211472]
[1754988606526,2.4670776,119040.0,119030.0,0.6201472]
[1754988607328,2.4670776,119040.0,119030.0,0.6351172]
[1754988607829,2.1640536,119040.0,119030.0,0.6351172]
[1754988608027,2.4660776,119040.0,119030.0,0.6351172]
[1754988609828,2.4660776,119040.0,119030.0,0.3330932]
[1754988610129,2.4660776,119040.0,119030.0,0.6351172]
[1754988610928,2.4660776,119040.0,119030.0,0.3330932]
[1754988611128,2.4660776,119040.0,119030.0,0.6351172]
[1754988612030,2.1640536,119040.0,119030.0,0.6351172]
[1754988612523,2.4660776,119040.0,119030.0,0.3330932]
[1754988612726,2.4660776,119040.0,119030.0,0.6351172]
[1754988613330,2.4660776,119040.0,119030.0,0.3330932]
[1754988613529,2.7681016,119040.0,119030.0,0.5387272]
[1754988614230,2.1640536,119040.0,119030.0,0.5387272]
[1754988614422,2.7681016,119040.0,119030.0,0.5387272]
[1754988614737,2.1640536,119040.0,119030.0,0.5387272]
[1754988614928,2.4660776,119040.0,119030.0,0.5553272]
[1754988615626,2.1640536,119040.0,119030.0,0.5553272]
[1754988615832,2.4660776,119040.0,119030.0,0.5553272]
[1754988616834,2.4660776,119040.0,119030.0,0.5872272]
[1754988617133,2.4660776,119040.0,119030.0,0.2852032]
[1754988617435,2.4660776,119040.0,119030.0,0.5553272]
[1754988618336,2.1640536,119040.0,119030.0,0.5553272]
[1754988618531,2.3266776,119040.0,119030.0,0.5553272]
[1754988618928,2.3266776,119040.0,119030.0,0.5882372]
[1754988619129,2.3266776,119040.0,119030.0,0.2862132]
[1754988619324,2.3266776,119040.0,119030.0,0.5882372]
[1754988620336,2.3266776,119040.0,119030.0,0.5553272]
[1754988620736,2.0246536,119040.0,119030.0,0.5553272]
[1754988621037,2.0246536,119040.0,119030.0,0.2533032]
[1754988621336,2.6287016,119040.0,119030.0,0.5553272]
[1754988621532,2.0246536,119040.0,119030.0,0.5553272]
[1754988621738,2.6287016,119040.0,119030.0,0.5553272]
[1754988622541,2.0246536,119040.0,119030.0,0.5553272]
[1754988622838,2.6287016,119040.0,119030.0,0.5553272]
[1754988623139,2.6287016,119040.0,119030.0,0.2129832]
[1754988623737,2.6287016,119040.0,119030.0,0.2364932]
[1754988624538,2.6297016,119040.0,119030.0,0.2364932]
[1754988626337,2.6297016,119040.0,119030.0,0.5385172]
[1754988627231,2.6297016,119040.0,119030.0,0.2364932]
[1754988627433,2.6297016,119040.0,119030.0,0.5385172]
[1754988628742,2.6297016,119040.0,119030.0,0.2364932]
[1754988629745,2.6297016,119040.0,119030.0,0.2129832]
[1754988630537,2.7691016,119040.0,119030.0,0.2129832]
[1754988631340,2.7691016,119040.0,119030.0,0.2364932]
[1754988634347,2.1650536,119040.0,119030.0,0.2364932]
[1754988634545,2.7691016,119040.0,119030.0,0.2364932]
[1754988642348,3.0711256,119040.0,119030.0,0.093972]
[1754988642654,3.09914947,119040.0,119030.0,0.033202]
[1754988642848,3.0725882,119040.0,119030.0,0.033202]
[1754988643040,3.09915047,119040.0,119030.0,0.033202]
[1754988643350,3.0725882,119040.0,119030.0,0.033202]
[1754988644652,3.2406042,119040.0,119030.0,0.033202]
[1754988645052,2.96511459,119040.0,119030.0,0.033202]
[1754988645252,2.9385802,119040.0,119030.0,0.033202]
[1754988647352,2.95720607,119040.0,119030.0,0.033202]
[1754988650358,3.25923007,119040.0,119030.0,0.033202]
[1754988650559,2.95720607,119040.0,119030.0,0.033202]
[1754988651659,2.78919007,119040.0,119030.0,0.033202]
[1754988652263,3.09121407,119040.0,119030.0,0.033202]
[1754988653459,2.78919007,119040.0,119030.0,0.057922]
[1754988654960,2.18514207,119040.0,119030.0,0.057922]
[1754988655260,2.78919007,119040.0,119030.0,0.057922]
[1754988657559,2.18514207,119040.0,119030.0,0.1419325]
[1754988657862,3.57943007,119040.0,119030.0,0.2351225]
[1754988658062,3.57943007,119040.0,119030.0,0.057922]
[1754988658264,3.57943007,119040.0,119030.0,0.1419325]
[1754988658562,3.57943007,119040.0,119030.0,0.057922]
[1754988658960,3.57943007,119040.0,119030.0,0.033202]
[1754988659166,3.88145407,119040.0,119030.0,0.033202]
[1754988659461,3.57943007,119040.0,119030.0,0.033202]
[1754988659662,3.57943007,119040.0,119030.0,0.057922]
[1754988660364,3.57943007,119040.0,119030.0,0.1419326]
[1754988662365,3.57943007,119040.0,119030.0,0.1884626]
[1754988662659,3.57943007,119040.0,119030.0,0.2351226]
[1754988662660,2.78919007,119040.0,119030.0,0.2351226]
[1754988662864,3.57915007,119040.0,119030.0,0.2351226]
[1754988663064,2.97510207,119040.0,119030.0,0.2351226]
[1754988663267,3.57915007,119040.0,119030.0,0.2351226]
[1754988664269,3.57915007,119040.0,119030.0,0.1419326]
[1754988665468,3.57915007,119040.0,119030.0,0.2351226]
[1754988666970,3.57915007,119040.0,119030.0,0.1951926]
[1754988667168,3.57915007,119040.0,119030.0,0.2351226]
[1754988668268,3.57915007,119040.0,119030.0,0.2212326]
[1754988668471,3.57915007,119040.0,119030.0,0.1884626]
[1754988668671,3.57815007,119040.0,119030.0,0.1884626]
[1754988670367,3.57815007,119040.0,119030.0,0.1510726]
[1754988671873,3.57915007,119040.0,119030.0,0.1510726]
[1754988672072,2.97510207,119040.0,119030.0,0.1510726]
[1754988672274,3.57915007,119040.0,119030.0,0.1510726]
[1754988673369,3.60587149,119040.0,119030.0,0.1510726]
[1754988673974,3.60587149,119040.0,119030.0,0.067062]
[1754988675975,3.60587149,119040.0,119030.0,0.057922]
[1754988676975,3.57915007,119040.0,119030.0,0.057922]
[1754988677170,3.88117407,119040.0,119030.0,0.057922]
[1754988677366,3.88117407,119040.0,119030.0,0.033202]
[1754988682375,3.88117407,119040.0,119010.0,0.1912372]
[1754988682376,0.2234177,119020.0,119010.0,0.1912372]
[1754988682571,1.9772257,119020.0,119010.0,0.1912372]
[1754988683080,2.05452058,119020.0,119010.0,0.2237272]
[1754988683274,2.05452058,119020.0,119010.0,0.2494172]
[1754988683475,2.05452058,119020.0,119010.0,0.1797136]
[1754988683777,2.71734458,119020.0,119010.0,0.02319]
[1754988683980,2.74406221,119020.0,119010.0,0.02319]
[1754988684878,2.44203821,119020.0,119010.0,0.02319]
[1754988685569,2.44203821,119020.0,119010.0,0.152162]
[1754988686080,1.83799021,119020.0,119010.0,0.152162]
[1754988686279,2.41532058,119020.0,119010.0,0.152162]
[1754988686577,2.44202124,119020.0,119010.0,0.152162]
[1754988686767,2.24091491,119020.0,119010.0,0.152162]
[1754988686974,2.24091491,119020.0,119010.0,0.2361868]
[1754988687280,1.83797324,119020.0,119010.0,0.2361868]
[1754988687474,2.24091491,119020.0,119010.0,0.2361868]
[1754988688981,2.24091491,119020.0,119010.0,0.2618768]
[1754988689181,2.24091491,119020.0,119010.0,0.3306168]
[1754988689978,2.21421425,119020.0,119010.0,0.3306168]
[1754988692686,1.81127258,119020.0,119010.0,0.3306168]
[1754988692987,2.21421425,119020.0,119010.0,0.3306168]
[1754988696781,2.21421425,119020.0,119010.0,0.3162968]
[1754988696980,2.21421425,119020.0,119010.0,0.2361868]
[1754988697486,2.21421425,119020.0,119010.0,0.152162]
[1754988697879,2.21421425,119020.0,119010.0,0.128972]
[1754988698588,2.21421425,119020.0,119010.0,0.152162]
[1754988698780,1.81127258,119020.0,119010.0,0.152162]
[1754988698980,2.21421425,119020.0,119010.0,0.152162]
[1754988699787,2.21421425,119020.0,119010.0,0.2361868]
[1754988700287,2.21421425,119020.0,119010.0,0.2981268]
[1754988700490,2.21421425,119020.0,119010.0,0.3306168]
[1754988703790,1.81127258,119020.0,119010.0,0.3306168]
[1754988703991,2.21421425,119020.0,119010.0,0.3306168]
[1754988704178,2.21421425,119020.0,119010.0,0.246592]
[1754988705083,2.21421425,119020.0,119010.0,0.3306168]
[1754988705490,2.21421425,119020.0,119010.0,0.246592]
[1754988705993,2.21421425,119020.0,119010.0,0.3306168]
[1754988706390,2.21421425,119020.0,119010.0,0.246592]
[1754988708494,2.21421425,119020.0,119010.0,0.232272]
[1754988708692,2.21421425,119020.0,119010.0,0.152162]
[1754988713694,2.21421425,119020.0,119010.0,0.128972]
[1754988714395,2.61715592,119020.0,119010.0,0.128972]
[1754988714591,2.64387765,119020.0,119010.0,0.128972]
[1754988715390,2.61715592,119020.0,119010.0,0.128972]
[1754988715695,0.0840459,118980.0,118970.0,0.299208]
[1754988715889,0.84778757,118980.0,118970.0,0.322188]
[1754988716087,0.84778757,118980.0,118970.0,0.347088]
[1754988716493,0.84778757,118980.0,118970.0,0.369928]
[1754988716793,0.84778757,118980.0,118970.0,0.37835578]
[1754988716996,0.84778757,118980.0,118970.0,0.38235578]
[1754988717295,0.84778757,118980.0,118970.0,0.38735578]
[1754988718695,0.84778757,118980.0,118970.0,0.5079]
[1754988721898,0.4448459,118980.0,118970.0,0.5079]
[1754988722086,0.84778757,118980.0,118970.0,0.5079]
[1754988726598,0.4448459,118980.0,118970.0,0.5079]
[1754988726999,0.4448459,118980.0,118970.0,0.91084167]
[1754988727691,0.4448459,118980.0,118970.0,0.5079]
[1754988727892,0.4448459,118980.0,118970.0,0.91084167]
[1754988728091,0.4448459,118980.0,118970.0,0.5079]
[1754988728288,0.4448459,118980.0,118970.0,0.91084167]
[1754988729196,0.4448459,118980.0,118970.0,0.5079]
[1754988729498,0.4448459,118980.0,118970.0,0.91084167]
[1754988732906,0.4448459,118980.0,118970.0,0.5079]
[1754988734909,0.4448459,118980.0,118970.0,0.91084167]
[1754988735101,0.4448459,118980.0,118970.0,1.69748167]
[1754988737511,0.3608,118980.0,118970.0,1.69748167]
[1754988738598,0.1680824,118990.0,118980.0,0.084046]
[1754988738802,0.1680824,118990.0,118980.0,0.60512767]
[1754988739906,1.15535247,119000.0,118980.0,0.77321477]
[1754988740111,0.7524108,119000.0,118990.0,0.55681057]
[1754988740305,1.15535247,119000.0,118990.0,0.3295809]
[1754988741608,0.5843318,119000.0,118990.0,0.73252257]
[1754988741811,0.3608,119000.0,118990.0,0.74955771]
[1754988742108,0.4448318,119000.0,118990.0,0.34661604]
[1754988742302,0.5003,119010.0,118990.0,1.78994961]
[1754988742506,0.5003,119010.0,119000.0,0.55680347]
[1754988742704,0.5003,119010.0,119000.0,0.60354347]
[1754988743214,0.5003,119010.0,119000.0,0.61182874]
[1754988743406,0.5003,119010.0,119000.0,0.20888707]
[1754988744210,0.5003,119010.0,119000.0,0.20988707]
[1754988744406,0.5003,119010.0,119000.0,0.2016018]
[1754988744916,0.5843248,119010.0,119000.0,0.2016018]
[1754988745116,0.5003,119010.0,119000.0,0.2016018]
[1754988745418,0.5003,119010.0,119000.0,0.33993826]
[1754988746215,0.5843248,119010.0,119000.0,0.33993826]
[1754988748618,0.5843248,119010.0,119000.0,0.74287993]
[1754988749119,0.5843248,119010.0,119000.0,0.33993826]
[1754988756323,0.5003,119010.0,119000.0,0.33993826]
[1754988756624,0.5843248,119010.0,119000.0,0.74287993]
[1754988757524,0.5843248,119010.0,119000.0,0.33993826]
[1754988760326,0.5843248,119010.0,119000.0,0.29330826]
[1754988760526,0.5843248,119010.0,119000.0,0.33993826]
[1754988760719,0.5843248,119010.0,119000.0,0.3315738]
[1754988762728,0.88646447,119010.0,119000.0,0.63371347]
[1754988764231,0.88646447,119010.0,119000.0,0.64193062]